bitfinex-derivatives/quotes_ETHF0:USTF0_20251211
["timestamp","ask_amount","ask_price","bid_price","bid_amount"]
[1765433580715,1.4433,3207.4,3207.3,3.2078]
[1765433581015,1.4433,3207.4,3207.3,1.29563738]
[1765433581609,1.4433,3207.4,3207.3,0.15588]
[1765433582015,0.6929,3207.4,3207.3,0.15588]
[1765433582216,0.444,3207.5,3207.4,0.15587]
[1765433582414,5.10909892,3208.0,3207.9,0.15585]
[1765433582715,0.45799892,3208.0,3207.9,2.43536476]
[1765433582913,0.00309892,3208.0,3207.9,2.43536476]
[1765433584010,0.44709892,3208.0,3207.9,2.43536476]
[1765433585620,0.44709892,3208.0,3207.9,1.29560738]
[1765433586315,0.44709892,3208.0,3207.9,2.43536476]
[1765433587118,0.44709892,3208.0,3207.9,1.29560738]
[1765433587519,0.44709892,3208.0,3207.9,2.43536476]
[1765433589621,0.44709892,3208.0,3207.9,1.29560738]
[1765433589814,1.89039892,3208.0,3207.9,1.29560738]
[1765433590716,1.89039892,3208.0,3207.9,0.15585]
[1765433591412,1.13999892,3208.0,3207.9,0.15585]
[1765433591610,0.44709892,3208.0,3207.9,0.15585]
[1765433597027,1.14489892,3208.0,3207.9,0.15585]
[1765433600128,1.85649892,3208.0,3207.9,0.15585]
[1765433602029,1.14489892,3208.0,3207.9,0.15585]
[1765433602228,0.44709892,3208.0,3207.9,0.15585]
[1765433602630,1.14489892,3208.0,3207.9,0.15585]
[1765433602929,1.85649892,3208.0,3207.9,0.15585]
[1765433613738,1.42,3207.6,3207.5,1.11106098]
[1765433613938,1.42,3207.6,3207.5,0.15587]
[1765433616239,1.42,3207.2,3207.1,1.26695098]
[1765433617044,1.42,3207.2,3207.1,1.37785098]
[1765433617445,1.42,3207.2,3207.1,1.26695098]
[1765433618043,1.42,3207.2,3207.1,0.15589]
[1765433618342,0.4053,3207.5,3206.9,3.2078]
[1765433618343,1.8253,3207.0,3206.9,3.2078]
[1765433618547,1.8253,3207.0,3206.9,3.3637]
[1765433626357,1.8253,3207.0,3206.9,4.74156098]
[1765433626657,0.4053,3207.0,3206.9,5.00836098]
[1765433627265,1.1189,3207.0,3206.9,5.00836098]
[1765433627761,5.273,3207.4,3207.3,0.68948]
[1765433627950,5.273,3207.4,3207.3,1.80054098]
[1765433628859,4.5666,3207.4,3207.3,1.80054098]
[1765433629055,1.8253,3207.5,3207.4,0.68947]
[1765433631963,1.8253,3207.5,3207.4,0.42267]
[1765433634163,1.8253,3207.5,3207.4,0.68947]
[1765433635065,1.8253,3207.5,3207.4,3.89727]
[1765433635265,1.1189,3207.5,3207.4,3.89727]
[1765433635965,0.4053,3207.5,3207.4,3.89727]
[1765433636164,1.86709892,3208.0,3207.9,0.42265]
[1765433638159,1.86709892,3208.0,3207.9,0.68945]
[1765433638364,1.86709892,3208.0,3207.9,0.15585]
[1765433640667,1.8477,3207.5,3207.4,3.2078]
[1765433640867,1.8477,3207.5,3207.4,0.15587]
[1765433647172,1.8477,3207.5,3207.4,0.42307]
[1765433647671,1.8477,3207.5,3207.4,0.15587]
[1765433648470,1.8477,3207.5,3207.4,0.69027]
[1765433649170,1.8477,3207.5,3207.4,0.42307]
[1765433649572,1.8477,3207.5,3207.4,0.15587]
[1765433652674,1.8477,3207.5,3207.4,1.29587452]
[1765433664782,1.8477,3207.5,3207.4,0.15587]
[1765433664985,1.8477,3207.5,3207.4,1.29587452]
[1765433665280,1.8477,3207.5,3207.4,1.83147452]
[1765433665681,1.8477,3207.5,3207.4,1.56367452]
[1765433671582,1.8477,3207.5,3207.4,1.83147452]
[1765433672080,1.8477,3207.5,3207.4,1.56367452]
[1765433673582,1.8477,3207.5,3207.4,1.29587452]
[1765433674485,1.8477,3207.5,3207.4,0.15587]
[1765433674785,1.4095,3206.7,3206.6,3.78721]
[1765433674982,1.4095,3206.7,3206.6,3.36371]
[1765433675183,1.4095,3206.7,3206.6,3.78721]
[1765433676986,1.4095,3206.7,3206.6,4.92721452]
[1765433677291,1.8316,3207.0,3206.9,0.1559]
[1765433677589,1.8316,3207.0,3206.9,1.29590452]
[1765433679488,1.8316,3207.0,3206.9,1.71940452]
[1765433680083,1.8316,3207.0,3206.9,2.14290452]
[1765433681188,1.1093,3207.0,3206.9,2.14290452]
[1765433681490,3.895,3207.3,3207.2,1.00288]
[1765433681690,4.6173,3207.3,3207.2,2.14288452]
[1765433681890,4.6173,3207.3,3207.2,1.71938452]
[1765433682092,0.6872,3207.3,3207.2,2.14288452]
[1765433682284,1.4095,3207.3,3207.2,2.14288452]
[1765433682889,0.6872,3207.3,3207.2,2.14288452]
[1765433683090,5.6962,3207.5,3207.4,1.00287]
[1765433683291,1.8432,3207.5,3207.4,2.14287452]
[1765433683489,0.4337,3207.5,3207.4,2.14287452]
[1765433683691,1.13429892,3208.0,3207.9,0.57935]
[1765433683896,1.85659892,3208.0,3207.9,1.00285]
[1765433684396,1.85659892,3208.0,3207.9,0.57935]
[1765433685995,1.85659892,3208.0,3207.9,1.00285]
[1765433686695,1.85659892,3208.0,3207.9,0.57935]
[1765433687091,1.85659892,3208.0,3207.9,0.15585]
[1765433689696,1.8316,3207.5,3207.4,1.87527452]
[1765433690090,1.8316,3207.5,3207.4,2.45467452]
[1765433691393,1.8316,3207.5,3207.4,1.87527452]
[1765433691598,1.8316,3207.5,3207.4,2.45467452]
[1765433693704,1.1093,3207.5,3207.4,2.45467452]
[1765433693906,1.85659892,3208.0,3207.9,0.73525]
[1765433694105,1.85659892,3208.0,3207.9,0.15585]
[1765433695504,1.85659892,3208.0,3207.9,0.73525]
[1765433696504,1.85659892,3208.0,3207.9,0.15585]
[1765433700310,1.4189,3207.6,3207.5,1.71880452]
[1765433700608,1.4189,3207.6,3207.5,1.29587452]
[1765433701009,1.4189,3207.6,3207.5,0.15587]
[1765433701704,1.4189,3206.9,3206.8,1.71880452]
[1765433701899,1.4189,3206.9,3206.8,1.14000452]
[1765433702105,1.4189,3206.9,3206.8,1.71880452]
[1765433703506,1.4189,3206.9,3206.8,2.45350452]
[1765433703700,1.4189,3206.9,3206.8,5.66130452]
[1765433704610,1.4189,3206.9,3206.8,2.45350452]
[1765433705112,1.4189,3206.9,3206.8,1.87470452]
[1765433705510,1.4189,3206.9,3206.8,2.45350452]
[1765433706500,1.1027,3207.0,3206.9,1.3135]
[1765433706707,1.8393,3207.5,3207.4,0.73467]
[1765433706907,1.8393,3207.5,3207.4,1.87467452]
[1765433707211,1.8393,3207.5,3207.4,1.29587452]
[1765433708011,1.8393,3207.5,3207.4,1.87467452]
[1765433708310,1.8393,3207.5,3207.4,1.29587452]
[1765433709610,1.8393,3207.5,3207.4,0.15587]
[1765433711918,1.8393,3207.5,3207.4,0.73467]
[1765433712110,1.8393,3207.5,3207.4,1.31347]
[1765433712711,1.8393,3207.5,3207.4,0.73467]
[1765433713114,1.1027,3207.5,3207.4,1.31347]
[1765433713318,0.4204,3207.5,3207.4,1.31347]
[1765433713513,1.1146,3207.5,3207.4,1.31347]
[1765433713912,1.7903,3207.5,3207.4,1.31347]
[1765433715916,0.4204,3207.5,3207.4,1.31347]
[1765433716417,1.7903,3207.5,3207.4,0.73467]
[1765433717522,1.7903,3207.5,3207.4,1.31347]
[1765433717823,0.4204,3207.5,3207.4,1.31347]
[1765433718421,1.7903,3207.5,3207.4,0.73467]
[1765433720621,1.7903,3207.5,3207.4,0.15587]
[1765433724723,1.7903,3207.5,3207.4,0.73467]
[1765433725318,1.7903,3207.5,3207.4,0.15587]
[1765433726118,1.7874,3207.0,3206.9,3.2078]
[1765433726313,1.7874,3207.0,3206.9,3.7866]
[1765433727524,1.7874,3207.0,3206.9,3.9425]
[1765433728223,1.7874,3207.0,3206.9,4.5213]
[1765433730925,1.1117,3207.0,3206.9,4.5213]
[1765433731419,1.8617,3207.0,3206.9,3.3637]
[1765433731625,1.8617,3207.0,3206.9,0.1559]
[1765433733522,1.8617,3207.0,3206.9,1.3143]
[1765433733722,1.1117,3207.0,3206.9,1.3143]
[1765433734321,1.8617,3207.0,3206.9,1.3143]
[1765433736018,1.8617,3207.0,3206.9,2.4257259]
[1765433738224,1.1117,3207.0,3206.9,2.4257259]
[1765433738526,1.8617,3207.0,3206.9,2.4257259]
[1765433738723,1.1117,3207.0,3206.9,2.4257259]
[1765433739228,1.8617,3207.0,3206.9,2.4257259]
[1765433739830,0.4175,3207.0,3206.9,2.4257259]
[1765433741029,1.1178,3207.0,3206.9,2.4257259]
[1765433741424,1.8678,3207.0,3206.9,2.4257259]
[1765433742329,1.8678,3207.0,3206.9,1.8465259]
[1765433744233,1.8678,3207.0,3206.9,2.4257259]
[1765433745128,0.4175,3207.0,3206.9,2.4257259]
[1765433752132,5.0785,3207.5,3207.4,1.31427]
[1765433752332,3.6282,3207.5,3207.4,2.4256959]
[1765433752832,0.4204,3207.5,3207.4,2.4256959]
[1765433754934,1.1207,3207.5,3207.4,2.4256959]
[1765433758636,0.4204,3207.5,3207.4,2.4256959]
[1765433759427,1.1485,3207.5,3207.4,2.4256959]
[1765433761738,1.8715,3207.5,3207.4,2.4256959]
[1765433762030,1.8715,3207.5,3207.4,0.73507]
[1765433762930,1.8715,3207.5,3207.4,1.31307]
[1765433765338,1.8715,3207.5,3207.4,0.73507]
[1765433768239,1.8715,3207.5,3207.4,0.15587]
[1765433770042,1.8715,3207.5,3207.4,1.31187]
[1765433770241,1.8715,3207.5,3207.4,2.4232959]
[1765433772934,1.8818,3207.5,3207.4,2.4232959]
[1765433774241,1.8818,3207.5,3207.4,0.73387]
[1765433774441,1.8818,3207.5,3207.4,0.15587]
[1765433774844,1.4515,3206.6,3206.5,5.50876691]
[1765433775147,1.4515,3206.6,3206.5,5.66468691]
[1765433776148,4.6593,3206.9,3206.8,0.8626]
[1765433776339,4.6593,3206.9,3206.8,2.00296691]
[1765433780050,4.6593,3206.9,3206.8,0.8626]
[1765433780349,4.6593,3206.9,3206.8,2.00296691]
[1765433780547,4.6593,3206.9,3206.8,1.29626691]
[1765433782546,1.4515,3206.4,3206.0,4.34816691]
[1765433783250,1.4515,3206.4,3206.3,0.1606088]
[1765433784048,1.4515,3206.4,3206.3,0.8673088]
[1765433784249,1.4515,3206.4,3206.3,0.1606088]
[1765433789656,1.8159,3206.0,3205.9,1.14036691]
[1765433790457,1.8159,3206.0,3205.9,1.85726691]
[1765433790656,1.8159,3206.0,3205.9,2.01320691]
[1765433792658,1.8159,3206.0,3205.9,1.29630691]
[1765433793160,5.0416,3206.5,3206.4,1.4218]
[1765433793356,5.0416,3206.5,3206.4,2.56216691]
[1765433793556,5.0416,3206.5,3206.4,0.7169]
[1765433793959,5.0416,3206.5,3206.3,1.14036691]
[1765433793960,1.419,3206.4,3206.3,2.01319691]
[1765433797159,1.419,3206.4,3206.3,2.71809691]
[1765433797361,3.6226,3206.5,3206.4,1.57772]
[1765433797554,5.0416,3206.5,3206.4,1.57772]
[1765433797755,5.0416,3206.5,3206.4,0.15592]
[1765433799662,1.8244,3206.0,3205.9,1.85726691]
[1765433800162,1.8244,3206.0,3205.9,2.56216691]
[1765433800561,1.8244,3206.0,3205.9,2.71810691]
[1765433803171,1.1321,3206.0,3205.9,2.71810691]
[1765433803671,0.4054,3206.0,3205.9,2.71810691]
[1765433804366,1.1321,3206.0,3205.9,2.71810691]
[1765433804567,1.8244,3206.0,3205.9,2.71810691]
[1765433804970,1.1321,3206.0,3205.9,2.71810691]
[1765433805271,5.0416,3206.5,3206.4,0.87282]
[1765433805467,5.0416,3206.5,3206.4,2.01318691]
[1765433805874,5.0416,3206.5,3206.4,1.29628691]
[1765433807575,5.0416,3206.5,3206.4,0.15592]
[1765433811271,5.0416,3206.5,3206.4,1.29628691]
[1765433815880,5.0416,3206.5,3206.4,2.71808691]
[1765433816683,5.0416,3206.5,3206.4,2.01318691]
[1765433816879,5.0416,3206.5,3206.4,1.29628691]
[1765433817376,5.0416,3206.5,3206.4,2.01318691]
[1765433818382,5.0416,3206.5,3206.4,1.29628691]
[1765433818686,5.0416,3206.5,3206.4,0.15592]
[1765433819281,5.0416,3206.5,3206.4,2.00868691]
[1765433819680,5.0416,3206.5,3206.4,1.29628691]
[1765433819877,5.0416,3206.5,3205.7,3.2078]
[1765433820082,1.8116,3206.0,3205.9,1.4105]
[1765433821383,1.8116,3206.0,3205.9,2.55086691]
[1765433821584,1.8116,3206.0,3205.9,1.56644]
[1765433821882,1.8116,3206.0,3205.9,2.70680691]
[1765433822385,1.1229,3206.0,3205.9,2.70680691]
[1765433824280,0.4359,3206.0,3205.9,2.70680691]
[1765433825187,1.1229,3206.0,3205.9,2.70680691]
[1765433825782,0.4359,3206.0,3205.9,2.70680691]
[1765433825984,3.6226,3206.5,3206.4,1.56642]
[1765433826183,4.3096,3206.5,3206.4,2.70678691]
[1765433826383,3.2078,3206.5,3206.4,2.70678691]
[1765433826987,5.0194,3206.5,3206.4,2.70678691]
[1765433827784,5.0194,3206.5,3206.4,1.29628691]
[1765433828082,5.0194,3206.5,3206.4,2.00868691]
[1765433828688,5.0194,3206.5,3206.4,1.29628691]
[1765433830685,5.0194,3206.5,3206.4,2.70678691]
[1765433831190,4.3307,3206.5,3206.4,2.70678691]
[1765433831698,5.029,3206.5,3206.4,2.70678691]
[1765433831890,0.4359,3206.5,3206.4,2.70678691]
[1765433832088,1.3902788,3206.7,3206.6,1.62401]
[1765433832293,1.3902788,3206.7,3206.6,2.76437691]
[1765433834795,0.0046788,3206.7,3206.6,2.76437691]
[1765433835797,1.1021,3207.0,3206.9,1.624]
[1765433836095,4.5934,3207.4,3207.3,0.87658]
[1765433836291,4.5934,3207.4,3207.3,2.76434691]
[1765433836590,3.2078,3207.4,3207.3,2.76434691]
[1765433836798,3.2078,3207.4,3207.3,2.73518179]
[1765433837787,0.4204,3207.5,3207.4,1.62397]
[1765433838199,1.1077,3207.5,3207.4,1.62397]
[1765433839191,0.4204,3207.5,3207.4,1.62397]
[1765433839495,1.1077,3207.5,3207.4,1.62397]
[1765433839691,1.806,3207.5,3207.4,1.62397]
[1765433840493,1.806,3207.5,3207.4,0.87657]
[1765433840694,1.806,3207.5,3207.4,1.62397]
[1765433846095,0.0046788,3207.7,3207.6,1.62396]
[1765433846405,0.0046788,3207.7,3207.6,2.73516179]
[1765433848897,0.7235788,3207.7,3207.6,2.73516179]
[1765433849398,1.4657788,3207.7,3207.6,0.15586]
[1765433850904,1.4657788,3207.7,3207.6,1.59706]
[1765433851300,1.4657788,3207.7,3207.6,0.89136]
[1765433851605,1.4657788,3207.7,3207.6,0.15586]
[1765433859309,0.7235788,3207.7,3207.6,1.59706]
[1765433859515,1.4657788,3207.7,3207.6,1.59706]
[1765433860510,1.4657788,3207.7,3207.6,0.89136]
[1765433860708,1.4657788,3207.7,3207.6,0.15586]
[1765433861309,1.4611,3207.4,3207.3,0.0046788]
[1765433861506,1.4611,3207.2,3207.1,3.36368]
[1765433861709,1.4611,3207.2,3207.1,0.15588]
[1765433862012,1.4611,3206.8,3206.7,3.36371]
[1765433862614,1.4611,3206.8,3206.7,0.15591]
[1765433863914,0.7189,3206.9,3206.8,1.5971]
[1765433864216,1.4611,3206.9,3206.8,2.70830179]
[1765433864611,1.4611,3206.9,3206.8,2.00260179]
[1765433865310,1.4611,3206.9,3206.8,2.70830179]
[1765433865919,0.7189,3206.9,3206.8,2.70830179]
[1765433866120,4.6689,3207.3,3207.2,1.59708]
[1765433866316,4.6689,3207.3,3207.2,2.70828179]
[1765433866619,4.6689,3207.3,3207.2,1.26708179]
[1765433867217,4.6689,3207.3,3207.2,2.70828179]
[1765433867414,4.6689,3207.3,3207.2,2.00258179]
[1765433868126,4.6689,3207.3,3207.2,2.70828179]
[1765433868527,4.6735788,3207.7,3207.6,1.59706]
[1765433868724,4.6735788,3207.7,3207.6,0.89136]
[1765433869327,3.9313788,3207.7,3207.6,1.59706]
[1765433870028,4.6735788,3207.7,3207.6,0.89136]
[1765433870226,4.6735788,3207.7,3207.6,0.15586]
[1765433872329,3.9313788,3207.7,3207.6,1.59706]
[1765433872628,3.2124788,3207.7,3207.6,1.59706]
[1765433873127,3.9313788,3207.7,3207.6,1.59706]
[1765433875531,3.2124788,3207.7,3207.6,1.59706]
[1765433876734,4.6735788,3207.7,3207.6,1.59706]
[1765433876935,4.6735788,3207.7,3207.6,0.15586]
[1765433878133,4.6735788,3207.7,3207.6,0.89136]
[1765433879342,4.6735788,3207.7,3207.6,0.15586]
[1765433879736,4.6735788,3207.7,3207.6,0.87536]
[1765433882743,4.6735788,3207.7,3207.6,0.15586]
[1765433886442,1.3942,3206.9,3206.8,1.83070179]
[1765433886744,1.3942,3206.9,3206.8,2.54390179]
[1765433887449,0.7141,3206.9,3206.8,2.54390179]
[1765433887647,0.7141,3206.9,3206.8,2.69980179]
[1765433892455,4.6297,3207.3,3207.2,1.59768]
[1765433892754,3.2078,3207.3,3207.2,1.59768]
[1765433893256,3.9216,3207.3,3207.2,1.59768]
[1765433894259,4.6297,3207.3,3207.2,1.59768]
[1765433895160,1.4219,3207.3,3207.2,1.59768]
[1765433895458,0.7138,3207.3,3207.2,1.59768]
[1765433896654,0.7138,3207.3,3207.2,2.73765175]
[1765433897957,1.4265788,3207.7,3207.6,0.15586]
[1765433900451,1.4265788,3207.7,3207.0,1.57927175]
[1765433900657,1.4219,3207.1,3207.0,3.17696175]
[1765433905262,1.4219,3207.1,3207.0,2.47636175]
[1765433905864,1.4219,3207.1,3207.0,3.17696175]
[1765433914973,1.4219,3207.1,3207.0,3.19646175]
[1765433915167,4.5818,3207.3,3207.2,1.59368]
[1765433915365,3.9046,3207.3,3207.2,2.73365175]
[1765433915563,4.5818,3207.3,3207.2,2.73365175]
[1765433915768,3.9092788,3207.7,3207.6,1.59366]
[1765433915966,3.9092788,3207.7,3207.6,2.73363175]
[1765433918166,3.2124788,3207.7,3207.6,2.73363175]
[1765433918368,3.9092788,3207.7,3207.6,2.73363175]
[1765433919175,4.5864788,3207.7,3207.6,2.73363175]
[1765433919375,4.5864788,3207.7,3207.6,2.01353175]
[1765433920577,4.5864788,3207.7,3207.6,1.29583175]
[1765433920876,4.5864788,3207.7,3207.6,2.01353175]
[1765433921371,4.5864788,3207.7,3207.6,2.73363175]
[1765433921775,3.9092788,3207.7,3207.6,2.73363175]
[1765433921975,4.5864788,3207.7,3207.6,2.73363175]
[1765433922174,4.5864788,3207.7,3206.5,1.1475]
[1765433922175,4.35245055,3207.7,3206.5,1.1475]
[1765433922373,3.2078,3206.8,3206.5,0.58571]
[1765433922574,3.2078,3206.8,3206.5,0.13502608]
[1765433922774,0.6886,3206.6,3206.5,2.59059783]
[1765433923580,0.6886,3206.6,3206.5,2.74650783]
[1765433924474,0.3443,3206.6,3206.5,2.74650783]
[1765433925280,3.2078,3206.8,3206.7,1.59371]
[1765433925482,3.2078,3206.8,3206.7,2.73368175]
[1765433926875,3.5521,3206.8,3206.7,1.59371]
[1765433927076,3.5521,3206.8,3206.7,2.73368175]
[1765433927277,3.2078,3206.8,3206.7,2.73368175]
[1765433928085,3.5521,3206.8,3206.7,2.73368175]
[1765433928286,3.2078,3206.8,3206.7,2.73368175]
[1765433929187,3.2078,3207.4,3206.7,2.57777175]
[1765433929378,3.2078,3207.4,3207.3,2.73365175]
[1765433929982,3.5521,3207.4,3207.3,2.73365175]
[1765433931183,3.8964,3207.4,3207.3,2.73365175]
[1765433931379,3.8964,3207.4,3207.3,0.15588]
[1765433932882,3.8964,3207.4,3207.3,0.87358]
[1765433933784,3.8964,3207.4,3207.3,0.15588]
[1765433934474,3.8964,3207.4,3207.3,0.87358]
[1765433934675,3.8964,3207.4,3207.3,0.15588]
[1765433935286,3.8964,3207.4,3207.3,1.59368]
[1765433935484,3.5521,3207.4,3207.3,1.59368]
[1765433935887,3.8964,3207.4,3207.3,1.59368]
[1765433936287,3.8964,3207.4,3207.3,0.15588]
[1765433936491,3.8964,3207.4,3207.3,0.87358]
[1765433937586,3.8964,3207.4,3207.3,0.15588]
[1765433939093,3.8964,3207.4,3207.3,0.87358]
[1765433939589,3.8964,3207.4,3207.3,0.15588]
[1765433940286,3.5521,3207.4,3207.3,0.86028]
[1765433940484,3.8936,3207.4,3207.3,0.86028]
[1765433940989,3.8936,3207.4,3207.3,0.15588]
[1765433941181,3.8936,3207.4,3207.3,1.53788]
[1765433941384,3.8936,3207.4,3207.3,0.86028]
[1765433941584,3.8936,3207.4,3207.3,0.15588]
[1765433941784,3.8936,3207.4,3207.3,0.86028]
[1765433942491,3.8936,3207.4,3207.3,0.15588]
[1765433943383,0.683,3206.6,3206.5,1.1433]
[1765433943587,0.683,3206.6,3206.5,1.73479175]
[1765433944186,0.683,3206.6,3206.5,2.43919175]
[1765433944986,0.683,3206.6,3206.4,3.2124788]
[1765433944987,1.0245,3206.5,3206.4,0.0046788]
[1765433945187,4.2323,3206.5,3206.4,0.0046788]
[1765433945387,0.683,3206.3,3206.2,0.15593]
[1765433949298,0.683,3206.3,3206.2,0.86033]
[1765433949695,0.683,3206.3,3206.2,2.00030175]
[1765433951706,3.8962,3206.5,3206.4,1.60512]
[1765433951907,3.8962,3206.5,3206.4,2.74509175]
[1765433952105,3.2078,3206.5,3206.4,2.74509175]
[1765433952306,3.552,3206.5,3206.4,2.74509175]
[1765433952507,3.8962,3206.5,3206.4,2.74509175]
[1765433952706,3.8962,3206.5,3206.4,1.29589175]
[1765433953112,3.8962,3206.5,3206.4,2.02309175]
[1765433953910,3.8962,3206.5,3206.4,2.74509175]
[1765433956112,3.8962,3206.5,3206.4,0.15592]
[1765433957013,3.8962,3206.5,3206.4,1.60512]
[1765433957714,3.8962,3206.5,3206.4,0.15592]
[1765433958209,3.2078,3206.5,3206.4,1.60512]
[1765433960506,3.552,3206.5,3206.4,1.60512]
[1765433960714,0.3442,3207.0,3206.9,1.60509]
[1765433961107,0.6884,3207.0,3206.9,1.60509]
[1765433962212,0.6884,3207.0,3206.9,0.15589]
[1765433963516,0.6884,3207.0,3206.9,0.88309]
[1765433964020,0.6884,3207.0,3206.9,1.60509]
[1765433964920,0.3442,3207.0,3206.9,1.60509]
[1765433965515,0.6884,3207.0,3206.9,1.60509]
[1765433965720,0.6884,3207.0,3206.9,0.88309]
[1765433966020,0.6884,3207.0,3206.9,0.15589]
[1765433966215,0.6884,3207.0,3206.5,0.4084]
[1765433966414,0.6884,3206.6,3206.5,1.8576]
[1765433966816,3.8962,3207.1,3207.0,1.29149]
[1765433967323,3.8962,3207.1,3207.0,0.56429]
[1765433967914,3.8962,3207.1,3207.0,0.15589]
[1765433969718,0.6874,3206.6,3206.5,1.8423]
[1765433970119,0.6874,3206.6,3206.5,1.99822]
[1765433970319,3.2078,3207.1,3207.0,0.57489]
[1765433970523,3.8942,3207.1,3207.0,1.99179]
[1765433970721,3.8942,3207.1,3207.0,0.15589]
[1765433971017,0.3432,3206.6,3206.5,2.93761462]
[1765433971425,0.6864,3207.0,3206.9,0.1559]
[1765433972426,0.6864,3206.6,3206.5,0.4084]
[1765433972627,3.8942,3206.6,3206.5,0.4084]
[1765433972821,3.8942,3206.6,3206.5,1.1186]
[1765433973223,3.8942,3206.6,3206.5,0.56432]
[1765433973926,3.8942,3206.6,3206.5,0.57492]
[1765433976927,3.8942,3206.6,3206.5,1.28512]
[1765433977622,3.8942,3206.6,3206.5,0.57492]
[1765433980334,3.8942,3206.6,3206.5,0.15592]
[1765433980535,0.6864,3206.1,3206.0,1.14]
[1765433980834,0.6864,3206.1,3206.0,1.8467]
[1765433981736,0.6864,3206.1,3206.0,2.00264]
[1765433983032,0.6864,3206.0,3205.5,0.4389]
[1765433983230,3.2078,3205.6,3205.5,1.8558]
[1765433983430,3.21158479,3205.6,3205.5,1.8558]
[1765433983937,0.00378479,3205.6,3205.5,2.01176]
[1765433985640,0.0046788,3205.9,3205.8,1.57285]
[1765433985832,0.0046788,3205.9,3205.8,2.68516462]
[1765433986530,0.00870936,3205.9,3205.8,2.6884535]
[1765433986834,0.35570936,3205.9,3205.8,2.6884535]
[1765433987532,0.00870936,3205.9,3205.8,2.6884535]
[1765433987738,0.35570936,3205.9,3205.8,2.6884535]
[1765433988138,0.35570936,3205.9,3205.8,1.57613888]
[1765433988139,0.70270936,3205.9,3205.8,1.57613888]
[1765433989234,0.70270936,3205.9,3205.8,0.86943888]
[1765433989436,0.694,3205.6,3205.5,1.1491]
[1765433989635,3.9018,3205.6,3205.5,1.1491]
[1765433989834,3.9018,3205.6,3205.5,0.4389]
[1765433990238,3.9018,3205.6,3205.5,1.1491]
[1765433991037,3.9018,3205.6,3205.5,1.8558]
[1765433991835,3.9018,3205.6,3205.5,0.59486]
[1765433992142,1.4655,3205.1,3205.0,1.99189]
[1765433992541,3.9334,3205.2,3205.1,1.57288]
[1765433992742,4.6733,3205.2,3205.1,1.57288]
[1765433993138,3.9334,3205.2,3205.1,1.57288]
[1765433993345,4.6733,3205.2,3205.1,1.57288]
[1765433993544,4.6733,3205.2,3205.1,0.86618]
[1765433994943,4.6733,3205.2,3205.1,0.15598]
[1765433999254,4.6733,3205.2,3205.1,1.60078]
[1765433999751,4.6733,3205.2,3205.1,0.86618]
[1765433999947,4.6733,3205.2,3205.1,0.15598]
[1765434000351,1.3991,3205.1,3205.0,0.419]
[1765434000547,1.3991,3204.4,3204.3,0.15602]
[1765434004252,1.3991,3204.1,3204.0,0.419]
[1765434004462,4.6069,3204.1,3204.0,1.1057]
[1765434004858,4.6069,3204.1,3204.0,1.8403]
[1765434005550,4.6069,3204.1,3204.0,1.99634]
[1765434007559,4.6069,3204.1,3204.0,0.57504]
[1765434008752,4.6069,3204.1,3204.0,0.15604]
[1765434009350,1.3991,3203.6,3203.5,4.3135]
[1765434009548,1.40215791,3203.6,3203.5,4.3135]
[1765434009854,1.40215791,3203.6,3203.5,5.0481]
[1765434010049,1.40215791,3203.6,3203.5,0.419]
[1765434010256,4.60995791,3203.6,3203.5,1.1057]
[1765434010552,4.60995791,3203.6,3203.5,1.26176]
[1765434010960,4.60995791,3203.6,3203.5,0.57506]
[1765434011260,4.60995791,3203.6,3203.2,1.11231462]
[1765434011555,1.4117,3203.3,3203.2,0.15608]
[1765434011966,1.4117,3203.3,3203.2,0.87458]
[1765434012157,1.4117,3203.3,3203.2,0.15608]
[1765434012357,1.4117,3203.3,3203.2,0.87458]
[1765434012754,3.92625791,3203.6,3203.5,2.04756]
[1765434012959,3.92625791,3203.6,3203.5,3.15987462]
[1765434013362,4.62255791,3203.6,3203.5,3.15987462]
[1765434014255,4.62255791,3203.6,3203.5,0.58956]
[1765434014460,4.62255791,3203.6,3203.5,0.15606]
[1765434016351,3.92625791,3203.6,3203.5,2.04756]
[1765434016553,4.62255791,3203.6,3203.5,2.04756]
[1765434018657,4.62255791,3203.6,3203.5,3.1903831]
[1765434019257,4.62255791,3203.6,3203.5,2.04756]
[1765434019457,4.62255791,3203.6,3203.5,2.4508831]
[1765434020164,4.62255791,3203.6,3203.5,3.1903831]
[1765434021361,3.92625791,3203.6,3203.5,3.1903831]
[1765434022067,4.62255791,3203.6,3203.5,3.1903831]
[1765434022566,3.92625791,3203.6,3203.5,3.1903831]
[1765434023261,4.62255791,3203.6,3203.5,3.1903831]
[1765434024461,3.21085791,3203.6,3203.5,3.1903831]
[1765434025166,3.92625791,3203.6,3203.5,3.1903831]
[1765434025663,3.21085791,3203.6,3203.5,3.1903831]
[1765434026166,3.92625791,3203.6,3203.5,3.1903831]
[1765434026361,4.62255791,3203.6,3203.5,3.1903831]
[1765434027258,4.62255791,3203.6,3203.5,1.7323831]
[1765434027461,4.62255791,3203.6,3203.5,2.4508831]
[1765434027861,4.62255791,3203.6,3203.5,3.1903831]
[1765434028057,4.62255791,3203.6,3203.5,1.30806]
[1765434028263,4.62255791,3203.6,3203.5,0.15606]
[1765434028668,4.62255791,3203.6,3203.5,1.2988831]
[1765434029263,5.74594093,3203.6,3203.5,0.15606]
[1765434029460,1.4481,3203.4,3203.3,1.1428231]
[1765434030062,2.57150908,3203.4,3203.3,1.1428231]
[1765434030368,1.4481,3203.2,3203.1,1.1428231]
[1765434030669,4.6559,3203.2,3203.1,0.15608]
[1765434030967,1.4481,3202.5,3202.4,1.2989431]
[1765434031167,1.4481,3202.9,3202.8,1.5719]
[1765434031369,1.4481,3202.9,3202.8,2.7147231]
[1765434031761,1.4481,3202.9,3202.8,2.0305231]
[1765434032968,1.4481,3202.9,3202.8,0.1561]
[1765434033164,1.4481,3202.9,3202.8,1.2989231]
[1765434033562,1.4481,3202.9,3202.8,0.1561]